fUST/lending_fUST_20251105
["ID","MTS","AMOUNT","RATE_DAILY","PERIOD"]
[393211320,1762322487938,428.78942126,0.00037728,60]
[393211321,1762322489436,470.45536678,0.00037728,60]
[393211322,1762322489563,-216.25141653,0.00016344,2]
[393211323,1762322489584,-64.93195574,0.00016447,2]
[393211324,1762322491217,285.5373484,0.00037728,60]
[393211325,1762322492961,262.25031862,0.00037728,60]
[393211326,1762322494722,219.30618238,0.00037728,60]
[393211327,1762322495357,497.39406139,0.00037728,60]
[393211328,1762322499304,475.64031724,0.00037728,60]
[393211329,1762322501523,198.16367378,0.00037728,60]
[393211330,1762322505818,1553.25,0.00017663,3]
[393211331,1762322506090,219.99568282,0.00037728,60]
[393211332,1762322510359,446.83606012,0.00037728,60]
[393211333,1762322510642,165.47823328,0.00037728,60]
[393211334,1762322512694,209.54958196,0.00037728,60]
[393211335,1762322514777,483.86647565,0.00037728,60]
[393211336,1762322515365,385.03268906,0.00037728,60]
[393211337,1762322516444,776.62,0.00017663,3]
[393211338,1762322519092,500.0,0.00037728,60]
[393211339,1762322519239,201.3712394,0.00037728,60]
[393211340,1762322522075,-36.88817905,0.00016447,2]
[393211341,1762322522097,-122.02733718,0.0001699,2]
[393211342,1762322524160,287.2001107,0.00037728,60]
[393211343,1762322524825,-300.0,0.0001699,2]
[393211344,1762322525908,547.16218766,0.00037728,60]
[393211345,1762322527053,388.31,0.00017663,3]
[393211346,1762322529204,-148.94752892,0.0001699,2]
[393211347,1762322529237,-92.53917602,0.00017015,2]
[393211348,1762322531176,188.21631294,0.00037728,60]
[393211349,1762322533775,498.64709796,0.00037728,60]
[393211350,1762322534848,228.09541821,0.00037728,60]
[393211351,1762322536667,-171.48244664,0.00017015,2]
[393211352,1762322537246,158.0,1.03e-06,2]
[393211353,1762322537690,194.16,0.00017663,3]
[393211354,1762322538892,-127.29837734,0.00017015,2]
[393211355,1762322538916,-172.70162266,0.00017318,2]
[393211356,1762322540451,158.0,1.03e-06,2]
[393211357,1762322541511,-43.89838326,0.00017318,2]
[393211358,1762322541534,-297.890459,0.0001732,2]
[393211359,1762322543052,-288.52172154,0.0001732,2]
[393211360,1762322543567,158.0,1.03e-06,2]
[393211361,1762322544650,-176.53220651,0.0001732,2]
[393211362,1762322545123,394.74984344,0.00037728,60]
[393211363,1762322546231,323.81625583,0.00037728,60]
[393211364,1762322546720,158.0,1.03e-06,2]
[393211365,1762322548318,582.48,0.00017663,3]
[393211366,1762322549746,158.0,1.03e-06,2]
[393211367,1762322552663,158.0,1.03e-06,2]
[393211368,1762322553098,259.25151077,0.00037728,60]
[393211369,1762322553552,362.51382807,0.00037728,60]
[393211370,1762322554842,188.19,0.00015811,2]
[393211371,1762322555248,376.38,0.00016564,2]
[393211372,1762322555352,333.93156483,0.00037728,60]
[393211373,1762322555642,158.0,1.03e-06,2]
[393211374,1762322555679,564.58,0.00017317,2]
[393211375,1762322560465,158.0,1.03e-06,2]
[393211376,1762322565125,150.0,0.00037728,30]
[393211377,1762322567076,500.0,0.00037728,30]
[393211378,1762322567325,500.0,0.00037728,30]
[393211379,1762322567599,514.14338267,0.00037728,30]
[393211380,1762322567737,385.02181427,0.00037728,60]
[393211381,1762322569564,345.73621797,0.00037728,60]
[393211382,1762322570363,417.50289208,0.00037728,60]
[393211383,1762322572497,444.11263604,0.00037728,60]
[393211384,1762322575948,500.0,0.00037728,60]
[393211385,1762322576195,480.07088377,0.00037728,60]
[393211386,1762322581140,415.19841327,0.00037728,60]
[393211387,1762322585895,302.54452084,0.00037728,60]
[393211388,1762322588321,309.32434539,0.00037728,60]
[393211389,1762322589817,500.0,0.00037728,60]
[393211390,1762322590056,234.65301453,0.00037728,60]
[393211391,1762322592628,508.19363389,0.00037728,60]
[393211392,1762322593839,496.36738161,0.00037728,60]
[393211393,1762322596324,226.95135087,0.00037728,60]
[393211394,1762322601226,390.92254649,0.00037728,60]
[393211395,1762322605633,379.0902299,0.00037728,60]
[393211396,1762322605722,-188.47967271,0.0001732,2]
[393211397,1762322607426,306.67321451,0.00037728,60]
[393211398,1762322608414,-248.57594024,0.0001732,2]
[393211399,1762322608588,-65.41443617,0.00017495,2]
[393211400,1762322609556,441.41816003,0.00037728,60]
[393211401,1762322609881,-152.7107901,0.00017495,2]
[393211402,1762322612680,-186.27258948,0.00017495,2]
[393211403,1762322612916,158.67973549,0.00037728,60]
[393211404,1762322614054,-220.9375987,0.000176,2]
[393211405,1762322614401,255.04011425,0.00037728,60]
[393211406,1762322615559,-235.90704483,0.000176,2]
[393211407,1762322616876,452.32911257,0.00037728,60]
[393211408,1762322618666,-396.21583489,0.000176,2]
[393211409,1762322618787,359.132925,0.00037728,60]
[393211410,1762322622139,500.0,0.00037728,60]
[393211411,1762322622351,456.3909585,0.00037728,60]
[393211412,1762322623843,474.501361,0.00037728,60]
[393211413,1762322625718,487.87411968,0.00037728,60]
[393211414,1762322625777,224.6710228,0.00037728,60]
[393211415,1762322627529,307.49050856,0.00037728,60]
[393211416,1762322627834,-10.44622739,0.000176,2]
[393211417,1762322628484,-224.58061255,0.00017672,2]
[393211418,1762322628507,-38.73416032,0.00017672,2]
[393211419,1762322629156,500.0,0.00037728,60]
[393211420,1762322629395,237.89631202,0.00037728,60]
[393211421,1762322630704,-214.60578616,0.00017672,2]
[393211422,1762322632746,-46.66005352,0.00017672,2]
[393211423,1762322632767,-223.97224377,0.00017673,2]
[393211424,1762322634347,-160.0,0.00017673,2]
[393211425,1762322634533,234.1,0.00037728,60]
[393211426,1762322635676,173.82,0.00016467,2]
[393211427,1762322636088,347.64,0.00017251,2]
[393211428,1762322636306,9457.65754522,0.00017573,2]
[393211429,1762322636330,10000.01,0.00017573,2]
[393211430,1762322636353,10000.01,0.00017573,2]
[393211431,1762322636376,10000.01,0.00017573,2]
[393211432,1762322636512,10000.01,0.00017573,2]
[393211433,1762322638619,-322.99010641,0.00017573,2]
[393211434,1762322638958,496.18248425,0.00037728,60]
[393211435,1762322654607,333.98200257,0.00037728,60]
[393211436,1762322654867,194.3505245,0.00037728,60]
[393211437,1762322655760,497.60868285,0.00037728,60]
[393211438,1762322657181,500.0,0.00037728,60]
[393211439,1762322657416,188.23760045,0.00037728,60]
[393211440,1762322673452,440.93679831,0.00037728,60]
[393211442,1762322677399,172.01389601,0.00037728,60]
[393211445,1762322687225,241.81061251,0.00037728,60]
[393211446,1762322706233,320.27357942,0.00037728,60]
[393211447,1762322707149,421.13692018,0.00037728,60]
[393211448,1762322707661,386.72527325,0.00037728,60]
[393211449,1762322723655,222.52961928,0.00037728,60]
[393211450,1762322726773,248.97246918,0.00037728,60]
[393211451,1762322728330,496.8114765,0.00037728,60]
[393211452,1762322730000,186.96353163,0.00037728,60]
[393211453,1762322735006,188.61773195,0.00037728,60]
[393211454,1762322736031,496.80776536,0.00037728,60]
[393211455,1762322737619,357.29430928,0.00037728,60]
[393211456,1762322738503,340.6449688,0.00037728,60]
[393211457,1762322739339,253.64536968,0.00037728,60]
[393211458,1762322741950,265.64688475,0.00037728,60]
[393211459,1762322749872,227.83088675,0.00037728,60]
[393211460,1762322754803,357.45241307,0.00037728,60]
[393211461,1762322759317,167.7935793,0.00037728,60]
[393211462,1762322760289,194.51638422,0.00037728,60]
[393211463,1762322762969,465.82564151,0.00037728,60]
[393211464,1762322763828,395.19613081,0.00037728,60]
[393211465,1762322765650,227.89070407,0.00037728,60]
[393211466,1762322767444,416.66561961,0.00037728,60]
[393211467,1762322769288,295.35553491,0.00037728,60]
[393211468,1762322772919,447.22262191,0.00037728,60]
[393211469,1762322774646,376.78282187,0.00037728,60]
[393211470,1762322799527,425.55023738,0.00037728,60]
[393211471,1762322805582,378.74489673,0.00037728,60]
[393211472,1762322807508,230.91450496,0.00037728,60]
[393211473,1762322809266,295.39307445,0.00037728,60]
[393211474,1762322814095,232.48232517,0.00037728,60]
[393211475,1762322816361,211.55531295,0.00037728,60]
[393211476,1762322818296,500.0,0.00037728,60]
[393211477,1762322818553,476.99199093,0.00037728,60]
[393211478,1762322821248,160.78693588,0.00037728,60]
[393211479,1762322823130,344.22841858,0.00037728,60]
[393211480,1762322831380,318.29012038,0.00037728,60]
[393211481,1762322834145,-167.18,0.00016368,2]
[393211482,1762322834170,-334.37,0.00017148,2]
[393211483,1762322834191,-157.20642879,0.00017572,2]
[393211484,1762322834211,-275.23259651,0.00017572,2]
[393211485,1762322834233,-234.2391726,0.00017572,2]
[393211486,1762322834842,366.47410516,0.00037728,60]
[393211487,1762322836589,496.73736472,0.00037728,30]
[393211488,1762322839019,162.16108905,0.00037728,60]
[393211489,1762322840348,269.80089977,0.00037728,60]
[393211490,1762322842859,500.0,0.00037728,60]
[393211491,1762322843095,476.95744061,0.00037728,60]
[393211492,1762322847333,491.98975182,0.00037728,60]
[393211493,1762322851722,478.28611566,0.00037728,60]
[393211494,1762322854891,260.28428953,0.00037728,60]
[393211495,1762322859004,257.92249729,0.00037728,60]
[393211496,1762322859121,171.075666,0.00037728,60]
[393211497,1762322861782,286.01210407,0.00037728,60]
[393211498,1762322862047,355.10460975,0.00037728,60]
[393211499,1762322863588,478.76211471,0.00037728,60]
[393211500,1762322866395,385.83036534,0.00037728,60]
[393211501,1762322869604,182.11451454,0.00037728,60]
[393211502,1762322869823,201.44395919,0.00037728,60]
[393211503,1762322874497,359.45423662,0.00037728,60]
[393211504,1762322875823,482.9408705,0.00037728,60]
[393211505,1762322877842,391.60531725,0.00037728,60]
[393211506,1762322880968,188.8804104,0.00037728,60]
[393211507,1762322881559,400.95291528,0.00037728,60]
[393211508,1762322882944,469.63041292,0.00037728,60]
[393211509,1762322886338,366.77340972,0.00037728,60]
[393211510,1762322895998,227.16601379,0.00037728,60]
[393211511,1762322897762,310.96741117,0.00037728,60]
[393211512,1762322909425,497.73861363,0.00037728,60]
[393211513,1762323003009,2000.0,0.0002,7]
[393211550,1762323032448,-160.8,0.00016304,2]
[393211551,1762323032457,-147.29929999,0.00017072,2]
[393211575,1762323038363,-73.0642689,0.00017072,2]
[393211578,1762323038373,-321.6,0.0001708,2]
[393211580,1762323038382,-199.36316929,0.000175,2]
[393211582,1762323038394,-314.4785267,0.000175,2]
[393211687,1762323041056,-3e-08,0.00017472,2]
[393211689,1762323041069,-223.2269524,0.00017472,2]
[393211691,1762323041078,-241.72667162,0.000175,2]
[393211693,1762323041087,-300.0,0.00017572,2]
[393211695,1762323041097,-1200.0,0.00017572,2]
[393211697,1762323041106,-500.0,0.00017573,2]
[393211699,1762323041116,-500.0,0.00017573,2]
[393211701,1762323041125,-500.0,0.00017573,2]
[393211703,1762323041134,-500.0,0.00017573,2]
[393211705,1762323041144,-106.16124443,0.00017573,2]
[393212087,1762323046819,-393.83875557,0.00017573,2]
[393212088,1762323046958,-948.15900289,0.00017573,2]
[393212089,1762323072484,479.11394322,0.00037728,30]
[393212090,1762323100181,970.78,0.00017563,3]
[393212091,1762323100388,1941.56,0.00018933,3]
[393212092,1762323111044,485.39,0.00017563,3]
[393212093,1762323111262,970.78,0.00018933,3]
[393212094,1762323121659,242.69,0.00017563,3]
[393212095,1762323121846,485.38,0.00018933,3]
[393212096,1762323132228,728.1,0.00017563,3]
[393212097,1762323133987,-154.66,0.00016212,2]
[393212098,1762323134619,-222.75633366,0.00016598,2]
[393212099,1762323149210,-73.07161092,0.00016598,2]
[393212100,1762323162982,336.0,0.000215,4]
[393212101,1762323164534,-309.32,0.00016984,2]
[393212102,1762323173881,150.0,0.00016278,2]
[393212103,1762323175785,-223.98940305,0.00016991,2]
[393212104,1762323255674,150.0,0.00016186,2]
[393212105,1762323256112,293.69,0.00016957,2]
[393212106,1762323258964,5000.0,0.00016984,2]
[393212107,1762323267241,3787.68,0.00016984,2]
[393212108,1762323267268,1212.32,0.00016984,2]
[393212109,1762323275349,5000.0,0.00016984,2]
[393212110,1762323281859,229.5066219,0.00037728,120]
[393212111,1762323283904,5000.0,0.00016991,2]
[393212112,1762323292268,0.01,0.00016991,2]
[393212113,1762323292292,4999.99,0.00016991,2]
[393212114,1762323301064,5000.0,0.00016991,2]
[393212115,1762323303468,-99.02365465,0.00016991,2]
[393212116,1762323303500,-661.12232165,0.00017473,2]
[393212117,1762323307302,8479.7180474,0.00016573,2]
[393212118,1762323307325,3755.6905084,0.00016573,2]
[393212119,1762323308880,5000.0,0.00017473,2]
[393212120,1762323317383,1244.3194916,0.00017473,2]
[393212121,1762323317411,3755.6805084,0.00017473,2]
[393212122,1762323318733,-347.76002268,0.00017571,2]
[393212123,1762323325666,5000.0,0.00017571,2]
[393212124,1762323334041,4304.48995464,0.00017571,2]
[393212125,1762323334065,695.51004536,0.00017571,2]
[393212126,1762323336423,150.0,0.00016385,2]
[393212127,1762323336929,282.4,0.00017165,2]
[393212128,1762323341775,5000.0,0.00017572,2]
[393212129,1762323350543,3240.56120007,0.00017572,2]
[393212130,1762323358876,1327.04879993,0.00017572,2]
[393212131,1762323358901,3672.95120007,0.00017572,2]
[393212134,1762323367387,5000.0,0.00017572,2]
[393212136,1762323383749,1327.05879993,0.00017572,2]
[393212137,1762323383774,3672.94120007,0.00017572,2]
[393212138,1762323392043,5000.0,0.00017572,2]
[393212139,1762323398696,578.4820314,0.00017473,2]
[393212140,1762323407801,748.58676853,0.00017572,2]
[393212141,1762323407823,4251.41323147,0.00017572,2]
[393212142,1762323415631,5000.0,0.00017572,2]
[393212143,1762323417825,150.0,0.000157,2]
[393212144,1762323418232,271.39,0.00016447,2]
[393212145,1762323418632,327.20676853,0.00017195,2]
[393212146,1762323418657,79.88323147,0.00017195,2]
[393212147,1762323497092,500.0,0.0003773,60]
[393212148,1762323497342,500.0,0.0003773,60]
[393212149,1762323497573,500.0,0.0003773,60]
[393212150,1762323497880,500.73836802,0.0003773,60]
[393212151,1762323551734,500.0,0.0003773,60]
[393212152,1762323551876,500.0,0.0003773,60]
[393212153,1762323552123,500.0,0.0003773,60]
[393212154,1762323552357,500.0,0.0003773,60]
[393212155,1762323552607,500.0,0.0003773,60]
[393212156,1762323552866,413.43630228,0.0003773,60]
[393212157,1762323566250,-150.0,0.00015432,2]
[393212158,1762323566275,-51.30505731,0.00016167,2]
[393212159,1762323670741,-150.0,0.00015298,2]
[393212160,1762323670768,-150.0,0.00015407,2]
[393212161,1762323670790,-150.0,0.00015453,2]
[393212162,1762323670815,-50.01705275,0.00016141,2]
[393212164,1762323685681,-195.16294725,0.0001598,2]
[393212165,1762323685713,-176.51980263,0.00016141,2]
[393212166,1762323743349,833.28,0.00037729,60]
[393212167,1762323743589,833.28,0.00037729,60]
[393212168,1762323743826,833.28,0.00037729,60]
[393212169,1762323744063,833.28,0.00037729,60]
[393212170,1762323744297,833.28,0.00037729,60]
[393212171,1762323744555,833.28,0.00037729,60]
[393212172,1762323744792,833.28,0.00037729,60]
[393212173,1762323745031,833.28,0.00037729,60]
[393212174,1762323745344,833.28,0.00037729,60]
[393212175,1762323745600,833.28,0.00037729,60]
[393212176,1762323745727,-150.0,0.00015392,2]
[393212177,1762323745752,-187.97783808,0.00016124,2]
[393212178,1762323745841,833.28,0.00037729,60]
[393212179,1762323746080,833.28,0.00037729,60]
[393212180,1762323746422,833.28,0.00037729,60]
[393212181,1762323746589,833.28,0.00037729,60]
[393212182,1762323746821,833.28,0.00037729,60]
[393212183,1762323747111,833.28,0.00037729,120]
[393212184,1762323747337,833.28,0.00037729,120]
[393212185,1762323747577,833.28,0.00037729,120]
[393212186,1762323747824,833.28,0.00037729,120]
[393212187,1762323748062,833.28,0.00037729,120]
[393212188,1762323748340,833.28,0.00037729,120]
[393212189,1762323748594,833.28,0.00037729,120]
[393212190,1762323748828,833.28,0.00037729,120]
[393212191,1762323749071,833.357296,0.00037729,120]
[393212192,1762323774392,151.0,0.000204,4]
[393212193,1762323775803,-150.0,0.00015238,2]
[393212194,1762323775831,-169.20792202,0.00015681,2]
[393212195,1762323833219,9000.0,0.00037729,30]
[393212196,1762323837515,-150.0,0.00015488,2]
[393212197,1762323837537,-55.50606818,0.00015681,2]
[393212198,1762323840906,-65.19739548,0.00015681,2]
[393212199,1762323840931,-123.13063667,0.00016226,2]
[393212201,1762323907728,625.57,0.00037729,60]
[393212203,1762323908173,625.57,0.00037729,60]
[393212204,1762323908424,625.57,0.00037729,60]
[393212207,1762323952235,448.59,0.0003773,30]
[393212219,1762323966486,878.698328,0.00013699,2]
[393212223,1762324000718,-150.0,0.00015402,2]
[393212224,1762324000743,-8.303,0.00016135,2]
[393212227,1762324032119,-211.737,0.00016135,2]
[393212228,1762324032272,-999.0,0.00016316,2]
[393212229,1762324032295,-999.0,0.00016481,2]
[393212230,1762324032316,-300.0,0.00016787,2]
[393212231,1762324032337,-465.3086872,0.00016788,2]
[393212232,1762324032358,-837.55563696,0.00016788,2]
[393212233,1762324032378,-1488.98779903,0.00016788,2]
[393212234,1762324032398,-2326.54343599,0.00016788,2]
[393212235,1762324032421,-330.06,0.00016868,2]
[393212236,1762324032444,-300.0,0.00017117,2]
[393212237,1762324032465,-1200.0,0.00017117,2]
[393212238,1762324032485,-12220.3105915,0.00017118,2]
[393212239,1762324032504,-735.01293009,0.00017346,2]
[393212240,1762324032523,-2140.2665544,0.0001747,2]
[393212241,1762324032544,-685000.0,0.00017473,2]
[393212242,1762324032564,-152.43,0.000175,2]
[393212243,1762324032584,-41116.54029422,0.00017571,2]
[393212244,1762324032606,-500.0,0.00017571,2]
[393212245,1762324032626,-471.58148465,0.00017571,2]
[393212246,1762324032648,-213.59380327,0.00017572,2]
[393212247,1762324032667,-500.0,0.00017572,2]
[393212248,1762324032688,-500.0,0.00017572,2]
[393212249,1762324032708,-456.38773733,0.00017572,2]
[393212250,1762324032728,-203.939,0.00017572,2]
[393212251,1762324032747,-501.69586011,0.00017572,2]
[393212252,1762324032769,-500.0,0.00017572,2]
[393212253,1762324032788,-500.0,0.00017573,2]
[393212254,1762324032806,-500.0,0.00017573,2]
[393212255,1762324032826,-500.0,0.00017573,2]
[393212256,1762324032844,-500.0,0.00017573,2]
[393212257,1762324032863,-407.22273631,0.00017573,2]
[393212258,1762324032885,-152.43,0.000176,2]
[393212259,1762324032909,-440.08,0.00017602,2]
[393212260,1762324032931,-283.9506003,0.00017672,2]
[393212261,1762324032952,-324.51497177,0.00017672,2]
[393212262,1762324032974,-506.54758875,0.00017672,2]
[393212263,1762324032994,-438.49253363,0.00017672,2]
[393212264,1762324033013,-789.28656054,0.00017672,2]
[393212265,1762324033032,-1403.17610762,0.00017672,2]
[393212266,1762324033052,-2190.27020549,0.00017672,2]
[393212267,1762324033072,-302.39450093,0.00017672,2]
[393212268,1762324033092,-251.84407873,0.00017672,2]
[393212269,1762324033113,-167.10832643,0.00017672,2]
[393212270,1762324033136,-342.09543511,0.00017681,2]
[393212271,1762324033160,-152.43,0.000177,2]
[393212272,1762324033184,-1955.0987198,0.00017738,2]
[393212273,1762324033206,-500.0,0.00017772,2]
[393212274,1762324033227,-152.43,0.000178,2]
[393212275,1762324033249,-500.0,0.00017823,2]
[393212276,1762324033269,-152.43,0.000179,2]
[393212277,1762324033290,-393.11286665,0.00017972,2]
[393212278,1762324033311,-1109.74234324,0.00018,2]
[393212279,1762324033330,-152.43,0.00018,2]
[393212280,1762324033351,-168.0,0.00018015,2]
[393212281,1762324033373,-600.0,0.00018024,2]
[393212282,1762324033395,-300.0,0.00018025,2]
[393212283,1762324033416,-300.0,0.00018025,2]
[393212284,1762324033439,-300.0,0.00018025,2]
[393212285,1762324033461,-300.0,0.00018025,2]
[393212286,1762324033483,-300.0,0.00018025,2]
[393212287,1762324033504,-300.0,0.00018025,2]
[393212288,1762324033526,-300.0,0.00018025,2]
[393212289,1762324033547,-300.0,0.00018025,2]
[393212290,1762324033569,-300.0,0.00018025,2]
[393212291,1762324033590,-300.0,0.00018025,2]
[393212292,1762324033616,-300.0,0.00018025,2]
[393212293,1762324033636,-300.0,0.00018025,2]
[393212294,1762324033658,-300.0,0.00018025,2]
[393212295,1762324033682,-300.0,0.00018025,2]
[393212296,1762324033704,-300.0,0.00018025,2]
[393212297,1762324033724,-152.43,0.000181,2]
[393212298,1762324033745,-168.0,0.00018104,2]
[393212299,1762324033766,-168.0,0.00018118,2]
[393212300,1762324033786,-423.45,0.00018121,2]
[393212301,1762324033806,-1000.0,0.00018121,2]
[393212302,1762324033825,-1000.0,0.00018121,2]
[393212303,1762324033847,-1000.0,0.00018121,2]
[393212304,1762324033868,-1000.0,0.00018121,2]
[393212305,1762324033887,-288.0,0.00018162,2]
[393212306,1762324033906,-4409.0,0.00018166,2]
[393212307,1762324033925,-986.0,0.00018166,2]
[393212308,1762324033944,-628.0,0.00018166,2]
[393212309,1762324033963,-2165.0,0.00018166,2]
[393212310,1762324033982,-537.411,0.00018166,2]
[393212311,1762324034004,-168.0,0.00018241,2]
[393212312,1762324034023,-250.0,0.0001826,2]
[393212313,1762324034044,-250.0,0.0001826,2]
[393212314,1762324034064,-215.82,0.0001826,2]
[393212315,1762324034084,-151.24,0.0001826,2]
[393212316,1762324034103,-150.0,0.0001826,2]
[393212317,1762324034123,-187.147,0.0001826,2]
[393212318,1762324034143,-154.922,0.0001826,2]
[393212319,1762324034165,-168.0,0.00018284,2]
[393212320,1762324034189,-550.1,0.00018335,2]
[393212321,1762324034209,-420.0,0.0001834,2]
[393212322,1762324034230,-168.0,0.00018381,2]
[393212323,1762324034252,-168.0,0.00018608,2]
[393212324,1762324034271,-632.42604513,0.00018668,2]
[393212325,1762324034290,-1500.0,0.00018668,2]
[393212326,1762324034310,-1500.0,0.00018668,2]
[393212327,1762324034332,-168.0,0.00018779,2]
[393212328,1762324034353,-1680.0,0.00018786,2]
[393212329,1762324034373,-153.99625041,0.00019,2]
[393212330,1762324034396,-660.12,0.00019069,2]
[393212331,1762324034417,-203.235638,0.000191,2]
[393212332,1762324034437,-714.81913282,0.00019138,2]
[393212333,1762324034456,-505.11998163,0.00019173,2]
[393212334,1762324034475,-500.0,0.00019173,2]
[393212335,1762324034494,-504.5907575,0.00019173,2]
[393212336,1762324034513,-209.13320529,0.00019173,2]
[393212337,1762324034533,-508.96198305,0.00019173,2]
[393212338,1762324034651,-500.0,0.00019173,2]
[393212339,1762324034670,-500.0,0.00019173,2]
[393212340,1762324034693,-156.64477627,0.00019173,2]
[393212341,1762324034712,-150.0,0.00019178,2]
[393212342,1762324034731,-329.02676167,0.00019178,2]
[393212343,1762324034751,-700.70997919,0.00019178,2]
[393212344,1762324034770,-700.70997919,0.00019178,2]
[393212345,1762324034790,-700.70997919,0.00019178,2]
[393212346,1762324034811,-700.70997919,0.00019178,2]
[393212347,1762324034832,-700.70997919,0.00019178,2]
[393212348,1762324034853,-700.70997919,0.00019178,2]
[393212349,1762324034875,-700.70997919,0.00019178,2]
[393212350,1762324034897,-700.70997919,0.00019178,2]
[393212351,1762324034918,-700.70997919,0.00019178,2]
[393212352,1762324034939,-700.70997919,0.00019178,2]
[393212353,1762324034960,-700.70997919,0.00019178,2]
[393212354,1762324034980,-700.70997919,0.00019178,2]
[393212355,1762324035000,-700.70997919,0.00019178,2]
[393212356,1762324035020,-700.70997919,0.00019178,2]
[393212357,1762324035041,-700.70997919,0.00019178,2]
[393212358,1762324035061,-700.70997919,0.00019178,2]
[393212359,1762324035081,-700.70997919,0.00019178,2]
[393212360,1762324035102,-700.70997919,0.00019178,2]
[393212361,1762324035122,-700.70997919,0.00019178,2]
[393212362,1762324035142,-700.70997919,0.00019178,2]
[393212363,1762324035162,-554.9058239,0.00019178,2]
[393212366,1762324052074,-500.0,0.00017767,2]
[393212367,1762324052094,-500.0,0.00017946,2]
[393212368,1762324052116,-152.43,0.000182,2]
[393212369,1762324052137,-500.0,0.0001822,2]
[393212370,1762324052158,-152.43,0.000183,2]
[393212371,1762324052180,-152.43,0.000184,2]
[393212372,1762324052201,-500.0,0.00018494,2]
[393212373,1762324052221,-152.43,0.000185,2]
[393212374,1762324052242,-152.43,0.000186,2]
[393212375,1762324052264,-152.43,0.000187,2]
[393212376,1762324052296,-500.0,0.00018768,2]
[393212377,1762324052319,-152.43,0.000188,2]
[393212378,1762324052341,-152.43,0.000189,2]
[393212379,1762324052363,-152.43,0.00019,2]
[393212380,1762324052385,-500.0,0.00019042,2]
[393212381,1762324052407,-152.43,0.000191,2]
[393212382,1762324052429,-145.80415529,0.00019178,2]
[393212383,1762324052450,-700.70997919,0.00019178,2]
[393212384,1762324052471,-700.70997919,0.00019178,2]
[393212385,1762324052499,-700.70997919,0.00019178,2]
[393212386,1762324052522,-700.70997919,0.00019178,2]
[393212387,1762324052544,-700.70997919,0.00019178,2]
[393212388,1762324052567,-700.70997919,0.00019178,2]
[393212389,1762324052589,-700.70997919,0.00019178,2]
[393212390,1762324052614,-700.70997919,0.00019178,2]
[393212391,1762324052637,-700.70997919,0.00019178,2]
[393212392,1762324052659,-700.70997919,0.00019178,2]
[393212393,1762324052680,-700.70997919,0.00019178,2]
[393212394,1762324052705,-700.70997919,0.00019178,2]
[393212395,1762324052726,-700.70997919,0.00019178,2]
[393212396,1762324052746,-700.70997919,0.00019178,2]
[393212397,1762324052767,-700.70997919,0.00019178,2]
[393212398,1762324052788,-700.70997919,0.00019178,2]
[393212399,1762324052808,-700.70997919,0.00019178,2]
[393212400,1762324052830,-700.70997919,0.00019178,2]
[393212401,1762324052850,-700.70997919,0.00019178,2]
[393212402,1762324052871,-700.70997919,0.00019178,2]
[393212403,1762324052890,-700.70997919,0.00019178,2]
[393212404,1762324052910,-700.70997919,0.00019178,2]
[393212405,1762324052930,-700.70997919,0.00019178,2]